Cogmind - Beta 12 X4 @@@ ROGUE MODE // 2022.12.08 @ 14:17:04 Player: Lunatic Blue Result: Destroyed by Y-45 Defender with Heavy Assault Rifle Performance ------------- Evolutions (2) 1000 Regions Visited (4) 800 Robots Destroyed (40) 200 Value Destroyed (1053) 1053 Prototype IDs (0) 0 Alien Tech Used (0) 0 Bonus (0) 0 TOTAL SCORE: 3053 Bonus ------- None Cogmind --------- Core Integrity 0/550 Matter 154/300 Energy 47/100 System Corruption 1% Temperature Cool (9) Movement Core (50) Location -8/Materials Parts ------- > --- POWER (1) -------- (None) > --- PROPULSION (4) --- VTOL Module > --- UTILITY (4) ------ Improved Sensor Array Hacking Suite > --- WEAPON (2) ------- Hammer > --- INVENTORY (5) ---- Improved Ion Engine Medium Storage Unit Medium Storage Unit Visual Processing Unit Transport Network Coupler Peak State ------------ > --- POWER ------------ (None) > --- PROPULSION ------- VTOL Module VTOL Module VTOL Module VTOL Module > --- UTILITY ---------- Improved Sensor Array Hacking Suite > --- WEAPON ----------- Hammer > --- INVENTORY -------- Medium Storage Unit Medium Storage Unit Visual Processing Unit Transport Network Coupler [Rating: 15] Favorites ----------- Power Ion Engine Engine Ion Engine Power Core Light Nuclear Core Propulsion Aluminum Leg Leg Aluminum Leg Wheel Compact Wheel Hover Unit Improved Hover Unit Flight Unit Flight Unit Utility Small Storage Unit Device Heat Sink Storage Small Storage Unit Hackware Hacking Suite Weapon Light Assault Rifle Ballistic Gun Light Assault Rifle Launcher Grenade Launcher Impact Weapon Hammer Build | -11 -10 -9 -9 -8 ------- Run | Scr Mat Mat Min Mat Slots Evolved 4 | . . 2 . 2 Power . | . . . . . Propulsion 2 | . . 2 . . Utility 2 | . . . . 2 Weapon . | . . . . . Parts Attached 49 | 6 10 22 . 11 Power 8 | 1 4 3 . . Engine 7 | 1 3 3 . . Core 1 | . 1 . . . Reactor . | . . . . . Propulsion 19 | 2 4 7 . 6 Treads . | . . . . . Leg 7 | 2 4 1 . . Wheel 3 | . . 1 . 2 Hover 1 | . . 1 . . Flight 8 | . . 4 . 4 Utility 6 | 1 1 2 . 2 Device 2 | . 1 . . 1 Storage 3 | 1 . 2 . . Processor . | . . . . . Hackware 1 | . . . . 1 Protection . | . . . . . Artifact . | . . . . . Weapon 16 | 2 1 10 . 3 Energy Gun . | . . . . . Energy Cannon . | . . . . . Ballistic Gun 11 | 2 1 7 . 1 Ballistic Cannon . | . . . . . Launcher 3 | . . 2 . 1 Special Weapon . | . . . . . Impact Weapon 2 | . . 1 . 1 Slashing Weapon . | . . . . . Piercing Weapon . | . . . . . Special Melee Weapon . | . . . . . Unidentified Prototypes . | . . . . . Parts Lost 23 | . 3 7 . 13 Power 5 | . 2 2 . 1 Propulsion 9 | . . 3 . 6 Utility 2 | . . . . 2 Weapon 7 | . 1 2 . 4 Highest Loss Streak 10 | . 2 2 . 10 To Critical Strikes . | . . . . . Average Slot Usage (%) 78 | . 85 80 88 56 Engine 7 | . 5 10 11 5 Core 3 | . 8 . . . Leg 15 | . 28 10 . . Wheel 2 | . . 2 11 6 Flight 7 | . . 14 22 10 Device 5 | . . 11 11 5 Storage 11 | . 14 11 11 6 Hackware 1 | . . . . 7 Ballistic Gun 21 | . 28 18 22 11 Naked Turns . | . . . . . Heaviest Build 20 | 13 13 20 11 11 Greatest Support 24 | 20 20 20 16 24 Greatest Overweight (x) 2 | . . 2 . . Average Overweight (x) . | . . . . . Largest Inventory Capacity 10 | 8 8 10 8 8 Average Capacity 7 | 7 8 8 8 7 Most Carried 9 | 4 8 9 7 8 Average Carried 6 | 1 7 7 7 6 Final Capacity 8 | 8 8 8 8 5 Final Carried 8 | 4 8 7 7 5 Class Distribution -------------------- 50% | Mutant 49% | Scavenger-Mutant Dominant Class ---------------- Mutant | -10/Materials Scavenger-Mutant | -9/Materials Scavenger-Mutant | -9/Mines Mutant | -8/Materials Resources | -11 -10 -9 -9 -8 ----------- Run | Scr Mat Mat Min Mat Matter Collected 989 | 236 284 262 24 183 Remotely . | . . . . . Salvage Created 1147 | . 463 302 . 382 Parts 88 | . 42 22 . 24 Haulers Intercepted 1 | . . . . 1 Recyclers Shooed 1 | . . 1 . . Parts Field Recycled . | . . . . . Retrieved Matter . | . . . . . Parts Self-Destructed . | . . . . . Prevented . | . . . . . Kills | -11 -10 -9 -9 -8 ------- Run | Scr Mat Mat Min Mat Combat Hostiles Destroyed 31 | . 10 11 . 10 Melee 1 | . . . . 1 Guns 22 | . 10 6 . 6 AOE 7 | . . 5 . 2 Classes Destroyed 11 | . 3 3 . 5 Worker 1 | . . . . 1 Tunneler 1 | . . . . 1 Hauler 1 | . . . . 1 Mechanic 1 | . . 1 . . Operator 3 | . 3 . . . Watcher 2 | . 1 1 . . Swarmer 11 | . . 7 . 4 Grunt 13 | . 10 1 . 2 Brawler 1 | . . . . 1 Sentry 5 | . . 3 . 2 Hunter 1 | . . . . 1 Best Kill Streak 5 | . 4 5 . 5 Combat Bots Only 4 | . 4 4 . 4 Max Kills in Single Turn 2 | . 1 2 . 2 Gunslinging 1 | . . 1 . 1 Exploded 2 | . . 2 . 1 Melee 1 | . . . . 1 Uniques/NPCs Destroyed . | . . . . . Combat | -11 -10 -9 -9 -8 -------- Run | Scr Mat Mat Min Mat Damage Taken 2559 | . 647 780 . 1132 Core 803 | . 159 89 . 555 Absorbed by Shields . | . . . . . Core Remaining (%) 71 | 100 36 . 77 . Volleys Fired 139 | . 61 37 . 41 Largest 2 | . 2 2 . 2 Hottest 53 | . 40 53 . 40 Shots Fired 245 | . 121 65 . 59 Gun 235 | . 121 61 . 53 Cannon . | . . . . . Launcher 10 | . . 4 . 6 Special . | . . . . . Kinetic 235 | . 121 61 . 53 Thermal . | . . . . . Explosive 10 | . . 4 . 6 Electromagnetic . | . . . . . Robot Hit Streak 29 | . 29 9 . 8 Robot Miss Streak 6 | . 6 5 . 3 Penetration Max . | . . . . . Secondary Targets 4 | . 1 2 . 1 Max Gunslinging Chain 1 | . 1 1 . 1 Shots Hit Robots 173 | . 81 43 . 49 Core Hits 73 | . 32 21 . 20 Critical Kills 2 | . 1 . . 1 Critical Parts Destroyed . | . . . . . Critical Strikes 2 | . 1 . . 1 Destroy 2 | . 1 . . 1 Melee Attacks 11 | . . 1 . 10 Impact 11 | . . 1 . 10 Slashing . | . . . . . Piercing . | . . . . . Sneak Attacks . | . . . . . Combat Hostiles . | . . . . . Follow-up Attacks . | . . . . . Damage Inflicted 2717 | . 868 720 . 1129 Guns 1649 | . 868 492 . 289 Cannons . | . . . . . Explosions 861 | . . 222 . 639 Melee 201 | . . . . 201 Ramming 6 | . . 6 . . Kinetic 1649 | . 868 492 . 289 Thermal . | . . . . . Explosive 861 | . . 222 . 639 Electromagnetic . | . . . . . Impact 201 | . . . . 201 Slashing . | . . . . . Piercing . | . . . . . Highest Corruption 1 | . . 1 1 1 Average Corruption 1 | . . 1 1 1 Corruption Purged . | . . . . . Corruption Blocked . | . . . . . Effects 2 | . . 2 . . Message Errors 1 | . . 1 . . Data Loss (minor) 1 | . . 1 . . Overload Shots . | . . . . . Overflow Damage 18 | . . . . 18 Projectiles . | . . . . . Explosions 9 | . . . . 9 Melee 9 | . . . . 9 Knockbacks . | . . . . . Impact . | . . . . . Kinetic . | . . . . . Secondary . | . . . . . Self-Inflicted Damage 278 | . . 68 . 210 Shots 7 | . . 2 . 5 Rammed 1 | . . 1 . . Targets Rammed 2 | . . 2 . . Kicked 1 | . . 1 . . Crushed . | . . . . . Highest Temperature 36 | . 36 17 . 3 Average Temperature 7 | . 7 7 . 3 Received Heat Transfer 825 | . 378 231 . 216 Siege Activations . | . . . . . Robots Corrupted . | . . . . . Combat Hostiles . | . . . . . Parts Fried . | . . . . . Impact Corruptions 1 | . . . . 1 Robots Melted . | . . . . . Combat Hostiles . | . . . . . Parts Melted . | . . . . . Heat Transferred . | . . . . . Parts Sabotaged . | . . . . . Parts Stolen . | . . . . . Parts Stripped . | . . . . . Power Chain Reactions . | . . . . . Missiles Intercepted . | . . . . . Alert | -11 -10 -9 -9 -8 ------- Run | Scr Mat Mat Min Mat Peak Influence 384 | . 245 384 3 248 Initial 56 | . . 56 3 . Average 145 | . 119 233 3 86 Maximum Alert Level 1 | . 1 1 . 1 Low Security (%) 61 | 100 75 31 100 75 Level 1 38 | . 24 68 . 24 Level 2 . | . . . . . Level 3 . | . . . . . Level 4 . | . . . . . Level 5 . | . . . . . High Security . | . . . . . Max Security . | . . . . . Squads Dispatched 4 | . 3 . . 1 Investigation . | . . . . . Extermination . | . . . . . Reinforcement 4 | . 3 . . 1 Assault . | . . . . . Garrison . | . . . . . Intercept . | . . . . . Searches Triggered . | . . . . . Construction Impeded 1 | . . . . 1 Haulers Reinforced . | . . . . . Active Scanning Responses . | . . . . . Cargo Convoy Interrupts . | . . . . . Stealth | -11 -10 -9 -9 -8 --------- Run | Scr Mat Mat Min Mat Distress Signals 5 | . 1 3 . 1 Communications Jammed . | . . . . . Distress Signals . | . . . . . Times Spotted 54 | . 26 16 . 12 Peak Tracking Total 8 | . 4 5 . 8 Tactical Retreats 3 | . 2 1 . . Traps | -11 -10 -9 -9 -8 ------- Run | Scr Mat Mat Min Mat Traps Triggered 1 | . . 1 . . Indirectly . | . . . . . Trap Hack Attempts . | . . . . . Triggered . | . . . . . Disarmed . | . . . . . Reprogrammed . | . . . . . Reused . | . . . . . Traps Extracted . | . . . . . Installed . | . . . . . Triggered . | . . . . . Machines | -11 -10 -9 -9 -8 ---------- Run | Scr Mat Mat Min Mat Machines Disabled 3 | . . 1 . 2 Max in Single Turn 2 | . . 1 . 2 Garrison Access 1 | . . . . 1 Machines Sabotaged . | . . . . . Overloaded Fab Kills . | . . . . . Hacking | -11 -10 -9 -9 -8 --------- Run | Scr Mat Mat Min Mat Machines Accessed 10 | . 3 4 . 3 Terminals 9 | . 3 4 . 2 Fabricators . | . . . . . Repair Stations . | . . . . . Recycling Units . | . . . . . Scanalyzers . | . . . . . Garrison Access 1 | . . . . 1 Total Hacks 38 | . 14 18 . 6 Successful 21 | . 8 10 . 3 Failed 17 | . 6 8 . 3 Catastrophic . | . . . . . Database Lockouts . | . . . . . Manual 35 | . 15 16 . 4 Terminals 36 | . 14 18 . 4 Fabricators . | . . . . . Repair Stations . | . . . . . Recycling Units . | . . . . . Scanalyzers . | . . . . . Garrison Access 2 | . . . . 2 Terminal Hacks 10 | . 5 5 . . Record 2 | . . 2 . . Robot Analysis 2 | . 2 . . . Terminal Index 2 | . 2 . . . Unreport Threat 2 | . . 2 . . Zone Layout 2 | . 1 1 . . Fabricator Hacks . | . . . . . Repair Station Hacks . | . . . . . Recycling Unit Hacks . | . . . . . Scanalyzer . | . . . . . Garrison Access Hacks 1 | . . . . 1 Seal Access 1 | . . . . 1 Unauthorized Hacks 10 | . 3 5 . 2 Terminals 10 | . 3 5 . 2 Botnet 8 | . 2 4 . 2 Operators 2 | . 1 1 . . Fabricators . | . . . . . Repair Stations . | . . . . . Recycling Units . | . . . . . Scanalyzers . | . . . . . Garrison Access . | . . . . . Data Cores Recovered . | . . . . . Used . | . . . . . Hacking Detections 9 | . 3 4 . 2 Full Trace Events . | . . . . . Feedback Events . | . . . . . Feedback Blocked . | . . . . . Robot Schematics Acquired . | . . . . . Robots Built . | . . . . . Authchips . | . . . . . Time . | . . . . . Total Robot Build Rating . | . . . . . Part Schematics Acquired . | . . . . . Parts Built . | . . . . . Authchips . | . . . . . Time . | . . . . . Total Part Build Rating . | . . . . . Parts Repaired . | . . . . . Time . | . . . . . Parts Recycled . | . . . . . Recycled Matter . | . . . . . Retrieved Matter . | . . . . . Retrieved Components . | . . . . . Parts Scanalyzed . | . . . . . Part Schematics Acquired . | . . . . . Parts Damaged . | . . . . . Bothacking | -11 -10 -9 -9 -8 ------------ Run | Scr Mat Mat Min Mat Used RIF Installer . | . . . . . Robots Hacked . | . . . . . Non-combat . | . . . . . Combat . | . . . . . Robot Hacks Applied . | . . . . . Relay Couplers Released . | . . . . . Fabnet Peak Effective % . | . . . . . Robots Rewired . | . . . . . Allies Hacked . | . . . . . Hacks Repelled . | . . . . . Allies | -11 -10 -9 -9 -8 -------- Run | Scr Mat Mat Min Mat Total Allies . | . . . . . Largest Group . | . . . . . Highest-Rated Group . | . . . . . Highest-Rated Ally . | . . . . . Total Orders . | . . . . . Ally Attacks . | . . . . . Total Damage . | . . . . . Kills . | . . . . . Allies Corrupted . | . . . . . Allies Melted . | . . . . . Intel | -11 -10 -9 -9 -8 ------- Run | Scr Mat Mat Min Mat Robot Analysis Total 2 | . 2 . . . Derelict Logs Recovered 1 | . . . 1 . Drone Launches . | . . . . . Drone Recoveries . | . . . . . Exploration | -11 -10 -9 -9 -8 ------------- Run | Scr Mat Mat Min Mat Turns Passed 1306 | 64 519 457 21 245 Spaces Moved 812 | 44 268 362 22 116 Core 8 | 2 . . . 6 Treads . | . . . . . Legs 422 | 42 268 112 . . Wheels 224 | . . 103 22 99 Hover . | . . . . . Flight 158 | . . 147 . 11 Fastest Speed 26 | 50 120 31 100 26 Average Speed 99 | 116 120 85 100 89 Slowest Speed 197 | 120 120 197 100 100 Overloaded Moves . | . . . . . Propulsion Burnouts . | . . . . . Robots Hopped . | . . . . . Cave-ins Triggered . | . . . . . Exploration Rate (%) 20 | 3 40 39 11 11 Regions Visited 4 Branch Regions 1 Pre-discovered Areas . | . . . . . Known Exits Taken . | . . . . . Unknown Exits Taken 4 | 1 1 1 1 . Scrap Searched 1 | . . . 1 . Spaces Dug 1 | . . 1 . . Terrain Destroyed 33 | . . 14 . 19 Melee 1 | . . 1 . . Projectile . | . . . . . AOE 32 | . . 13 . 19 Terrain Rammed . | . . . . . Walls Destroyed . | . . . . . Machines Disabled . | . . . . . Actions | -11 -10 -9 -9 -8 --------- Run | Scr Mat Mat Min Mat Total 1075 | 53 358 454 21 189 Wait 27 | . 6 15 . 6 Move 808 | 43 267 361 21 116 Hop . | . . . . . Pick Up 22 | 4 7 8 . 3 Fast Attach 21 | 6 3 5 . 7 Attach 13 | . 2 7 . 4 Detach . | . . . . . Swap 15 | . 5 10 . . Drop 17 | . 7 8 . 2 Fire 139 | . 61 37 . 41 Melee 11 | . . 1 . 10 Ram 1 | . . 1 . . Kick 1 | . . 1 . . Crush . | . . . . . Escape Stasis . | . . . . . Rewire . | . . . . . Trap . | . . . . . Miscellaneous . | . . . . . Route ------- -11/Scrapyard -10/Materials (discovered 2 exits: *Mat x2) -9/Materials -9/Mines -8/Materials History --------- Turn | Location | Event 21 | -11/Scrapyard | Discovered new exit (range 16) 65 | -11/Scrapyard | Entered Materials 88 | -10/Materials | Discovered new exit (range 19) 189 | -10/Materials | Discovered new exit (range 7) 310 | -10/Materials | Build established: Mutant 529 | -10/Materials | Core integrity fell below 50% 584 | -10/Materials | Entered another Materials area 584 | -9/Materials | Evolved 2 slots: Propulsion x2 905 | -9/Materials | Build established: Scavenger-Mutant 943 | -9/Materials | Discovered new exit (range 12) 1041 | -9/Materials | Entered Mines 1046 | -9/Mines | Learned Materials terminal intel 1058 | -9/Mines | Discovered new exit (range 4) 1059 | -9/Mines | Met a Derelict testing a Signal Generator 1062 | -9/Mines | Entered Materials 1062 | -8/Materials | Evolved 2 slots: Utility x2 1063 | -8/Materials | Loaded intel: 12 terminal locations 1234 | -8/Materials | Core integrity fell below 50% 1241 | -8/Materials | Core integrity fell below 20% 1273 | -8/Materials | Lost 10 parts (1p3n2u4w) 1307 | -8/Materials | Destroyed by Y-45 Defender with Heavy Assault Rifle Last Messages --------------- 01242_ Destroyed Mni. Grenade Launcher. 01242_ Penetrated by Slug. 01245_ Slug penetrates Wall. 01245_ Destroyed Targeting Computer. 01245_ H-55 Commando system corrupted by crushing effect. 01246_ H-55 Commando system terminally corrupted. 01250_ Acquired Arm. Wheel. 01253_ W-25 Informer sends out distress signal. 01253_ Acquired Arm. Wheel. 01269_ Y-45 Defender destroyed. 01275_ Acquired VTOL Module. 01279_ Dropped Arm. Wheel. 01280_ Acquired VTOL Module. 01284_ Acquired Imp. Sensor Array. 01286_ Acquired Imp. Ion Engine. 01293_ VTOL Module destroyed. 01293_ R-06 Scavenger collects Lgt. Treads. 01296_ VTOL Module destroyed. 01297_ R-06 Scavenger collects Heat Sink. 01299_ VTOL Module destroyed. Map ----- +----------------------------------------------------+ | ???###????######## #???????? | | ???# #?# ########???? | | ???# """ #?# # #???? | | ???# """ #?# # #???? | | ???# """ "" ### # """ #???? | | ???# """ Y" ?# # "G #???? | | ????? ""???# # """ #???? | | ??????? ?????# #== #???? | | ???????##+######## ##+######### | | ######## ] | | # ## ! | | # """ # ############+######### | | # " ##???????# #???? | | # " ######### "T" #???? | | # # ## #???? | | # " % # ![ #???? | | # " !% # !! #???? | | # =## [ #???? | | # # #########???? | | # !== ##???#####???????????? | | # = ## #????????????????????? | | # == ## #????????????????????? | | ######## #????????????????????? | | # # #????????????????????? | | # T # #????????????????????? | | # == @Y +????????????????????? | | # = # #????????????????????? | | # =[ # #????????????????????? | | # ! # #????????????????????? | | ###%#### #????????????????????? | | ??###??# +????????????????????? | | ??????? #????????????????????? | | ??????? #????????????????????? | | ??????? #????????????????????? | | ??????? #????????????????????? | | ??????? +????????????????????? | | ??????? #????????????????????? | | ???????# ?????????????????????? | | ???????? ?????????????????????? | | ???????? ?????????????????????? | | ???????????????????????????????? | | ???????????????????????????????? | | ???????????????????????????????? | | | | | | | | | | | | | | | +----------------------------------------------------+ Best States ------------- Heat Dissipation 41 Energy Generation 14 Energy Capacity 250 Matter Stores 300 Matter Capacity 300 Sight Range 16 Robot Scan Range 15 Terrain Scan Density 10 Evasion (%) 64 Offensive Hacking 10 Item Schematics ----------------- None Robot Schematics ------------------ None Fabricated ------------ Nothing Alien Tech Used ----------------- None Achievements -------------- None Challenges ------------ None Game ------ Seed HellfireHeatFirepult Manual? 0 Play Time 00:16:34 Cumulative 123.8 hours Start 2022.12.08 @ 14:03:20 End 2022.12.08 @ 14:17:04 Sessions 1 Manual Loads 0 Difficulty Rogue Special Mode None Game No. 221 Rogue 221 Adventurer 0 Explorer 0 Win Type - Total 2 Types 1/0/1/0/0/0/0/0/0 Lore% 65 Gallery% 72 Achievement% 53 Wizard Run 0 Options --------- ASCII 0 Keyboard 0 Movement Mouse Keybinds 0 Fullscreen 1 Font 18/SmallcapsGlow Map View 76x50 Tactical HUD 1 Map Filters NONE Filters NONE Steam 1 RUN: 2b3e1fcd-65c4-4322-8ce2-6dfd4e66237a